bitfinex-derivatives/quotes_SOLF0:USTF0_20250127
["timestamp","ask_amount","ask_price","bid_price","bid_amount"]
[1737983369359,25.5365544,234.59,234.37,25.5365544]
[1737983369665,25.5365544,234.55,234.36,25.5365544]
[1737983369964,25.5365544,234.59,234.39,25.5365544]
[1737983370565,0.03255042,234.51,234.47,0.02738451]
[1737983370955,0.03255042,234.51,234.35,26.38997876]
[1737983371165,25.5365544,234.59,234.39,25.5365544]
[1737983372060,0.02878665,234.51,234.47,0.0296457]
[1737983372563,0.02878665,234.51,234.3,25.5365544]
[1737983372967,4.23993477,234.49,234.3,25.5365544]
[1737983373469,4.2668,234.45,234.3,25.5365544]
[1737983373666,0.03174449,234.42,234.37,0.02779199]
[1737983374561,0.03174449,234.42,234.26,25.5365544]
[1737983374759,4.7318,234.44,234.3,25.5365544]
[1737983375063,4.7318,234.44,234.3,30.65956088]
[1737983375368,4.7318,234.44,234.38,25.5365544]
[1737983375566,25.5365544,234.63,234.42,25.5365544]
[1737983375973,8.647e-05,234.43,234.42,25.5365544]
[1737983376166,25.5365544,234.67,234.48,4.2662]
[1737983376365,25.5365544,234.67,234.42,25.5365544]
[1737983376673,29.7986544,234.71,234.5,4.2657]
[1737983376972,25.5365544,234.71,234.42,25.5365544]
[1737983377173,25.5365544,234.71,234.43,0.85313313]
[1737983377369,0.03152288,234.59,234.54,0.03049578]
[1737983377672,4.6017,234.73,234.51,25.5365544]
[1737983377865,0.0314248,234.59,234.54,0.02892836]
[1737983378272,25.5365544,234.65,234.43,0.85313313]
[1737983378573,0.02686642,234.59,234.54,0.02891822]
[1737983378869,25.5365544,234.57,234.37,25.5365544]
[1737983379066,4.5373,234.56,234.37,25.5365544]
[1737983379471,4.5373,234.56,234.41,25.5365544]
[1737983379873,0.02943632,234.51,234.46,0.03256644]
[1737983380570,0.02943632,234.51,234.49,25.5365544]
[1737983380874,0.02943632,234.51,234.46,0.03256644]
[1737983381075,0.02943632,234.51,234.49,25.5365544]
[1737983381476,4.5373,234.73,234.49,25.5365544]
[1737983381677,25.5365544,234.69,234.51,25.5365544]
[1737983381876,25.5365544,234.69,234.47,25.5365544]
[1737983382070,8.799,234.73,234.52,4.2653]
[1737983382273,4.5373,234.73,234.55,25.5365544]
[1737983382777,0.02999846,234.66,234.62,0.03166921]
[1737983383478,0.02999846,234.66,234.48,0.85295121]
[1737983383679,4.263,234.66,234.48,0.85295121]
[1737983383877,2.2012,234.66,234.48,0.85295121]
[1737983384174,2.2012,234.66,234.48,5.11905121]
[1737983384378,2.2012,234.66,234.48,0.85295121]
[1737983384679,0.02721036,234.59,234.55,0.03223145]
[1737983384881,25.5365544,234.91,234.58,25.5365544]
[1737983385081,4.7339,234.9,234.77,25.5365544]
[1737983385977,0.03177275,234.86,234.81,0.02807796]
[1737983387075,0.03177275,234.86,234.81,25.56463236]
[1737983387373,0.03177275,234.86,234.81,0.02807796]
[1737983387776,0.03177275,234.86,234.84,25.5365544]
[1737983388374,0.00289936,234.86,234.81,0.02807796]
[1737983389078,0.00289936,234.86,234.83,25.5365544]
[1737983389282,0.00289936,234.86,234.81,0.02807796]
[1737983389981,25.5365544,234.99,234.81,0.02807796]
[1737983390281,25.5365544,234.99,234.74,25.5365544]
[1737983390576,2.1585,235.02,234.74,25.5365544]
[1737983390577,27.11621694,235.04,234.83,25.5365544]
[1737983390782,1.57966254,235.04,234.75,0.85197018]
[1737983390983,0.02886426,234.96,234.91,0.02821629]
[1737983393478,0.02886426,234.96,234.91,4.28651629]
[1737983393778,0.02886426,234.96,234.92,25.5365544]
[1737983394282,0.02886426,234.96,234.91,0.02821629]
[1737983395484,25.5365544,234.98,234.91,0.02821629]
[1737983395683,0.21234512,235.04,234.91,0.02821629]
[1737983396385,0.21234512,235.04,234.92,25.5365544]
[1737983396583,0.21234512,235.04,234.96,25.5365544]
[1737983396785,0.02727748,235.0,234.92,25.5365544]
[1737983396986,0.02727748,235.0,234.86,4.6458]
[1737983397181,0.02727748,235.0,234.94,0.02940328]
[1737983398991,25.5365544,234.99,234.94,0.02940328]
[1737983399391,3.2206888,234.99,234.94,0.02940328]
[1737983399691,25.5365544,234.95,234.76,2.0168]
[1737983400784,25.5365544,235.29,234.86,25.5365544]
[1737983400989,25.5365544,235.14,234.9,25.5365544]
[1737983401192,25.5365544,235.18,235.02,4.2563]
[1737983401687,25.5365544,235.26,235.04,25.5365544]
[1737983402096,25.5365544,235.21,234.99,25.5365544]
[1737983402296,25.5365544,235.06,234.9,0.85142613]
[1737983402496,0.02754512,235.09,235.05,0.03133088]
[1737983402796,25.5365544,235.18,234.98,25.5365544]
[1737983402992,0.03094401,235.09,235.05,0.03111007]
[1737983404598,25.5365544,235.22,235.07,4.2554]
[1737983404900,25.5365544,235.22,235.05,0.03111007]
[1737983405099,25.5365544,235.26,235.11,4.2547]
[1737983405399,25.5365544,235.3,235.1,25.5365544]
[1737983405702,25.5365544,235.34,235.18,4.2535]
[1737983405999,25.5365544,235.34,235.14,25.5365544]
[1737983406199,25.5365544,235.38,235.24,0.02865971]
[1737983406598,25.5365544,235.43,235.18,25.5365544]
[1737983406898,25.5365544,235.51,235.29,0.03071858]
[1737983407291,25.5365544,235.46,235.28,4.2515]
[1737983407490,25.5365544,235.46,235.27,25.5365544]
[1737983407491,25.5365544,235.51,235.27,25.5365544]
[1737983407697,25.5365544,235.43,235.36,0.02895388]
[1737983407893,2.1643,235.42,235.36,0.02895388]
[1737983408102,4.7746,235.42,235.22,25.5365544]
[1737983408302,25.5365544,235.39,235.14,25.5365544]
[1737983408502,25.5365544,235.35,235.14,25.5365544]
[1737983409204,25.5365544,235.31,235.1,25.5365544]
[1737983409706,2.0887,235.41,235.18,25.56676527]
[1737983409907,25.5365544,235.42,235.18,0.03021087]
[1737983410107,29.7865544,235.38,235.15,4.2539]
[1737983410300,25.5365544,235.42,235.18,25.5365544]
[1737983410506,25.5365544,235.38,235.14,25.5365544]
[1737983410807,25.5365544,235.38,235.16,4.2539]
[1737983411008,25.5365544,235.38,235.24,0.03266285]
[1737983411306,25.5365544,235.47,235.26,25.5365544]
[1737983411707,43.88110591,235.48,235.3,25.5365544]
[1737983412110,43.88110591,235.48,235.34,0.03122987]
[1737983412310,25.5365544,235.43,235.34,0.03122987]
[1737983412509,25.5365544,235.35,235.11,26.38722004]
[1737983413008,25.5365544,235.31,235.11,26.38722004]
[1737983413206,25.5365544,235.27,235.11,0.85066564]
[1737983413509,25.5365544,235.22,235.11,0.85066564]
[1737983413708,0.02718247,235.21,234.99,25.5365544]
[1737983413910,25.5365544,235.18,234.95,25.5365544]
[1737983414100,25.5365544,235.09,234.86,6.9215]
[1737983414305,25.5365544,235.05,234.86,2.1207]
[1737983414509,25.5365544,235.05,234.85,25.5365544]
[1737983414711,25.5365544,235.18,234.86,4.2592]
[1737983414712,25.5365544,235.09,234.86,4.2592]
[1737983415011,25.5365544,235.22,235.0,25.5365544]
[1737983415208,25.5365544,235.26,235.04,25.5365544]
[1737983415414,25.5365544,235.3,235.08,25.5365544]
[1737983415711,0.03134033,235.17,235.13,0.0317817]
[1737983416008,2.1451,235.25,235.04,25.5365544]
[1737983416205,25.5365544,235.34,235.13,25.5365544]
[1737983416411,2.1451,235.33,235.15,4.2539]
[1737983416608,2.1451,235.33,235.13,25.5365544]
[1737983417109,25.5365544,235.3,235.09,2.2085]
[1737983417505,0.03233072,235.22,235.17,0.02889657]
[1737983418008,0.03055855,235.22,235.12,25.5365544]
[1737983418214,0.03055855,235.22,235.17,0.0297215]
[1737983418509,0.03123434,235.22,235.15,0.03013725]
[1737983418815,25.5365544,235.29,235.09,25.5365544]
[1737983419012,0.02720011,235.21,235.16,0.03229994]
[1737983419213,4.2506,235.34,235.14,25.5365544]
[1737983419516,0.03029026,235.21,235.16,0.03018399]
[1737983419710,25.5365544,235.29,235.1,25.5365544]
[1737983419910,0.02783069,235.21,235.16,0.03178493]
[1737983420107,2.014,235.33,235.1,25.5365544]
[1737983420311,0.02988737,235.21,235.16,0.02896686]
[1737983420615,25.5365544,235.29,235.07,25.5365544]
[1737983420811,0.02882421,235.21,235.16,0.0321597]
[1737983421213,25.5365544,235.24,235.08,0.8507742]
[1737983421409,25.5365544,235.19,235.08,0.8507742]
[1737983421608,2.1843,235.18,235.08,0.8507742]
[1737983421812,2.4757,235.23,235.08,0.8507742]
[1737983422215,25.5365544,235.16,235.08,0.8507742]
[1737983422417,25.5365544,235.11,234.88,25.5365544]
[1737983422611,25.5365544,235.07,234.89,0.85146238]
[1737983422812,25.5365544,235.03,234.97,0.02986663]
[1737983423012,25.5365544,234.99,234.89,0.85146238]
[1737983423214,25.5365544,234.91,234.75,2.1285]
[1737983423411,25.5365544,234.87,234.76,0.85193388]
[1737983423615,25.5365544,234.83,234.76,0.85193388]
[1737983424414,25.5365544,234.79,234.76,0.85193388]
[1737983424720,25.5365544,235.01,234.78,25.5365544]
[1737983424915,2.0583,235.0,234.78,25.5365544]
[1737983425115,25.5365544,234.93,234.7,25.5365544]
[1737983425416,25.5365544,234.89,234.64,2.6113]
[1737983425608,25.5365544,234.84,234.61,2.1285]
[1737983425812,25.5365544,234.75,234.42,2.6113]
[1737983426009,25.5365544,234.75,234.51,2.0303]
[1737983426209,25.5365544,234.75,234.54,164.18311996]
[1737983426411,25.5365544,234.74,234.55,0.85269665]
[1737983427218,0.02799503,234.67,234.64,25.5365544]
[1737983427417,25.5365544,235.07,234.74,4.2613]
[1737983427418,25.5365544,234.98,234.74,4.2613]
[1737983427622,2.99297249,234.97,234.76,25.5365544]
[1737983427813,0.85120871,234.96,234.76,25.5365544]
[1737983428013,25.5365544,234.94,234.72,25.5365544]
[1737983428221,25.5365544,234.9,234.68,25.5365544]
[1737983428417,0.85146238,234.89,234.68,25.5365544]
[1737983428722,0.85146238,234.89,234.77,0.02880325]
[1737983428915,0.85146238,234.89,234.8,25.5365544]
[1737983429115,0.85146238,234.89,234.8,4.2603]
[1737983429317,2.1418,234.97,234.8,4.2603]
[1737983429519,2.1418,234.97,234.78,2.095]
[1737983429715,25.5365544,234.93,234.72,25.5365544]
[1737983430116,0.02685605,234.9,234.85,0.03043736]
[1737983430318,25.56341045,234.9,234.85,0.03043736]
[1737983430623,25.5365544,234.9,234.68,25.5365544]
[1737983430823,25.5365544,234.82,234.6,25.5365544]
[1737983431017,2.4231,234.89,234.68,25.5365544]
[1737983431221,4.4762,234.89,234.72,29.7982544]
[1737983431417,4.4762,234.89,234.65,2.0289]
[1737983431615,25.5365544,234.96,234.68,25.5365544]
[1737983431820,2.0531,234.95,234.68,25.5365544]
[1737983432020,0.03169145,234.84,234.8,0.03009913]
[1737983432426,25.5365544,234.86,234.65,0.85233326]
[1737983432627,25.5365544,234.78,234.65,0.85233326]
[1737983432924,2.0531,234.77,234.73,0.02913831]
[1737983433118,2.5446,234.83,234.73,0.02913831]
[1737983433423,25.5365544,234.92,234.72,25.5365544]
[1737983433621,4.5977,234.95,234.72,25.5365544]
[1737983434621,4.5977,234.95,234.81,0.03183028]
[1737983434622,0.0300766,234.86,234.81,0.03183028]
[1737983434819,2.0531,234.95,234.81,0.03183028]
[1737983435221,25.5365544,234.91,234.81,0.03183028]
[1737983435417,27.5896544,234.95,234.81,0.03183028]
[1737983435623,4.2579,234.94,234.81,0.03183028]
[1737983435821,25.5365544,234.91,234.81,0.03183028]
[1737983436023,0.02743536,234.9,234.81,0.03183028]
[1737983436525,2.49953536,234.9,234.81,0.03183028]
[1737983437226,6.75823536,234.9,234.81,0.03183028]
[1737983437528,2.49953536,234.9,234.81,0.03183028]
[1737983437725,25.5365544,234.86,234.81,0.03183028]
[1737983437927,25.5365544,234.86,234.67,25.5365544]
[1737983438219,25.5365544,234.82,234.59,25.5365544]
[1737983438424,2.1597,234.81,234.59,25.5365544]
[1737983438728,25.5365544,234.95,234.72,25.5365544]
[1737983439019,25.5365544,235.18,234.76,25.5365544]
[1737983439020,2.1597,234.99,234.76,25.5365544]
[1737983439225,2.1597,234.99,234.81,0.03209481]
[1737983439421,25.5365544,235.18,234.88,25.5365544]
[1737983439626,25.5365544,235.12,234.93,25.5365544]
[1737983440025,25.5365544,235.12,234.89,27.6809544]
[1737983440229,25.5365544,235.04,234.81,25.5365544]
[1737983440422,0.03019168,234.97,234.93,0.02787624]
[1737983440829,25.5365544,234.94,234.75,2.1665]
[1737983441023,4.2585,234.91,234.72,25.5365544]
[1737983441324,2.2337,234.99,234.76,25.5365544]
[1737983441527,2.2337,234.99,234.84,25.5365544]
[1737983441728,2.2337,234.99,234.76,25.5365544]
[1737983441928,2.2337,234.99,234.8,25.5365544]
[1737983442129,0.03096266,234.94,234.89,0.02988844]
[1737983442626,25.5365544,234.93,234.72,25.5365544]
[1737983442831,25.5365544,234.93,234.68,25.5365544]
[1737983443223,25.5365544,234.96,234.63,25.5365544]
[1737983443532,25.5365544,234.88,234.67,25.5365544]
[1737983443723,4.2601,234.82,234.63,25.5365544]
[1737983443928,0.0288866,234.8,234.76,0.02836089]
[1737983444124,2.208,234.87,234.71,25.5365544]
[1737983444328,0.03084637,234.8,234.76,0.02997163]
[1737983445227,0.03084637,234.8,234.59,25.5365544]
[1737983445632,25.5365544,234.84,234.63,25.5365544]
[1737983445832,2.208,234.87,234.72,25.5365544]
[1737983446035,2.208,234.87,234.63,25.5365544]
[1737983446335,2.208,234.87,234.71,25.5365544]
[1737983446536,2.208,234.87,234.73,0.03098025]
[1737983447831,0.03233546,234.82,234.73,0.03098025]
[1737983448133,2.2337,234.99,234.79,25.5365544]
[1737983448330,2.2232,235.05,234.89,25.5365544]
[1737983449031,2.2232,235.05,234.86,2.2016]
[1737983449238,35.9134044,235.0,234.81,25.5365544]
[1737983449429,0.031839,234.95,234.91,0.0293961]
[1737983449733,1.9801731,235.0,234.94,25.5365544]
[1737983449935,25.5365544,235.23,234.93,25.5365544]
[1737983449936,28.2138544,235.23,234.99,25.5365544]
[1737983450132,25.5365544,235.11,234.91,25.5365544]
[1737983450341,25.5365544,235.15,234.91,25.5365544]
[1737983450529,2.1338,235.14,234.91,25.5365544]
[1737983451037,0.02738718,235.05,235.03,25.5365544]
[1737983451436,2.2109,235.22,235.03,25.5365544]
[1737983451632,0.03176007,235.06,235.03,25.5365544]
[1737983452039,2.1338,235.28,235.05,25.5365544]
[1737983452231,4.6656,235.39,235.19,25.5365544]
[1737983453032,25.5365544,235.36,235.15,25.5365544]
[1737983453337,25.5365544,235.26,235.07,25.5365544]
[1737983453636,24.04849013,235.26,235.07,25.5365544]
[1737983453836,25.5365544,235.3,235.07,25.5365544]
[1737983454031,4.6656,235.39,235.07,25.5365544]
[1737983454236,25.5365544,235.28,235.04,2.091]
[1737983454436,25.5365544,235.24,235.04,2.091]
[1737983454739,25.5365544,235.2,234.99,25.5365544]
[1737983454939,2.5359,235.23,235.04,25.5365544]
[1737983455537,25.5365544,235.29,235.08,25.5365544]
[1737983455736,25.5365544,235.33,235.13,25.5365544]
[1737983456440,25.5365544,235.33,235.09,2.2234]
[1737983457139,0.03174438,235.23,235.19,0.03237093]
[1737983457642,25.5365544,235.37,235.19,0.03237093]
[1737983457841,2.0949,235.39,235.19,0.03237093]
[1737983458036,2.0949,235.39,235.2,25.5365544]
[1737983458237,25.5365544,235.37,235.16,25.5365544]
[1737983458535,29.7881544,235.29,235.1,2.1199]
[1737983458733,25.5365544,235.29,235.04,25.5365544]
[1737983458933,4.6376,235.28,235.04,25.5365544]
[1737983459131,2.0949,235.39,235.21,25.5365544]
[1737983459338,2.5742,235.46,235.26,25.5365544]
[1737983459735,2.1071,235.5,235.26,25.5365544]
[1737983459942,2.1071,235.5,235.34,0.03094351]
[1737983460743,2.1071,235.5,235.34,25.56749791]
[1737983460941,25.5365544,235.55,235.34,25.56749791]
[1737983461143,25.5365544,235.55,235.34,29.81789791]
[1737983461445,25.5365544,235.55,235.34,25.56749791]
[1737983462239,2.1462,235.6,235.42,4.2491]
[1737983462240,25.5365544,235.59,235.42,4.2491]
[1737983462544,25.5365544,235.59,235.38,25.5365544]
[1737983462840,2.1462,235.6,235.43,0.02786464]
[1737983463539,25.5365544,235.59,235.43,0.02786464]
[1737983464140,2.1462,235.6,235.43,0.02786464]
[1737983464542,25.5365544,235.67,235.45,25.5365544]
[1737983464741,25.5365544,235.63,235.43,0.02786464]
[1737983466444,25.5365544,235.59,235.43,0.02786464]
[1737983466840,2.1965,235.58,235.43,0.02786464]
[1737983467044,6.4428,235.58,235.43,0.02786464]
[1737983467343,2.1965,235.58,235.43,0.02786464]
[1737983467646,25.5365544,235.55,235.43,0.02786464]
[1737983468043,13.3990686,235.48,235.43,0.02786464]
[1737983469250,4.2494,235.41,235.22,25.5365544]
[1737983469551,2.0654,235.4,235.22,25.5365544]
[1737983470550,0.03177565,235.33,235.29,0.02687798]
[1737983471948,25.56833005,235.33,235.09,6.7244]
[1737983472250,4.2518,235.28,235.09,2.1784]
[1737983472446,25.5365544,235.37,235.17,25.5365544]
[1737983472646,25.5365544,235.45,235.26,25.5365544]
[1737983472845,2.2327,235.46,235.26,25.5365544]
[1737983473044,2.2327,235.46,235.22,25.5365544]
[1737983473243,0.02857089,235.38,235.34,0.02904891]
[1737983473851,25.56512529,235.38,235.34,0.02904891]
[1737983474051,25.56512529,235.38,235.18,25.5365544]
[1737983474247,29.7879544,235.3,235.09,6.9853]
[1737983474453,2.1901,235.29,235.11,25.5365544]
[1737983475051,25.5365544,235.26,235.09,2.1183]
[1737983475252,25.5365544,235.17,235.0,2.2219]
[1737983475446,25.5365544,235.13,234.99,4.57442406]
[1737983475646,2.1901,235.16,234.99,4.57442406]
[1737983475848,25.5365544,235.25,235.07,25.5365544]
[1737983476052,25.5365544,235.34,235.11,25.5365544]
[1737983476351,25.5365544,235.38,235.15,25.5365544]
[1737983476552,25.5365544,235.21,235.2,0.02785996]
[1737983476856,25.5365544,235.21,234.95,25.5365544]
[1737983477055,25.5365544,235.13,234.96,2.1626]
[1737983477457,29.7903544,235.17,234.96,2.1626]
[1737983477657,25.5365544,235.17,234.96,2.1626]
[1737983477857,0.03192144,235.09,235.04,0.0295406]
[1737983478662,25.5365544,235.06,234.88,4.5083]
[1737983478859,0.03192144,235.09,234.89,2.1626]
[1737983479058,25.5365544,235.1,234.89,2.1626]
[1737983479365,25.5365544,235.05,234.89,2.1626]
[1737983479753,25.5365544,235.05,234.95,0.02967418]
[1737983480063,0.0289235,234.99,234.95,0.02967418]
[1737983480559,0.0289235,234.99,234.81,25.5365544]
[1737983480759,25.5365544,235.01,234.81,25.5365544]
[1737983480964,2.1503,235.04,234.81,25.5365544]
[1737983481160,2.1503,235.04,234.73,25.5365544]
[1737983481365,25.5365544,234.79,234.55,25.5365544]
[1737983481766,0.02731955,234.76,234.71,0.02922539]
[1737983482164,25.5365544,234.72,234.66,143.26245604]
[1737983482367,25.5365544,234.67,234.44,4.2667]
[1737983482562,25.5365544,234.61,234.43,6.9372]
[1737983482762,25.5365544,234.71,234.46,25.5365544]
[1737983482962,25.5365544,234.75,234.53,0.03196794]
[1737983483163,2.1983,234.82,234.6,25.5365544]
[1737983483369,25.5365544,234.79,234.56,25.5365544]
[1737983483771,25.5365544,234.83,234.6,25.5365544]
[1737983483963,25.5365544,234.83,234.63,4.2634]
[1737983484272,25.5365544,234.72,234.53,6.9372]
[1737983484773,25.5365544,234.68,234.41,25.5365544]
[1737983484970,25.5365544,234.64,234.45,4.2667]
[1737983485171,25.5365544,234.68,234.42,6.745]
[1737983485372,25.5365544,234.64,234.42,6.745]
[1737983485580,0.03091511,234.57,234.53,0.02838108]
[1737983486174,25.5365544,234.76,234.53,25.56493548]
[1737983486471,25.5365544,234.76,234.53,25.5365544]
[1737983486776,25.5365544,234.83,234.61,25.5365544]
[1737983486975,5.78256901,234.86,234.65,25.5365544]
[1737983487275,25.5365544,235.16,234.85,25.5365544]
[1737983487473,25.5365544,235.13,234.84,25.5365544]
[1737983487679,0.03115433,235.03,234.79,4.2604]
[1737983487872,0.03115433,235.03,234.96,0.02730413]
[1737983488072,25.5365544,235.07,234.84,25.5365544]
[1737983488270,0.03021467,235.02,234.97,0.03170991]
[1737983488671,3.19552946,235.12,234.95,25.5365544]
[1737983488879,0.02958693,235.02,235.0,25.5365544]
[1737983489080,0.85062946,235.12,235.0,25.5365544]
[1737983489270,0.85062946,235.12,234.96,25.5365544]
[1737983489475,0.85062946,235.12,235.01,25.5365544]
[1737983490178,0.02743307,235.09,235.04,0.03033325]
[1737983490874,0.02743307,235.09,235.06,25.5365544]
[1737983491681,25.5365544,235.26,235.06,25.5365544]
[1737983491980,25.5365544,235.26,235.02,25.5365544]
[1737983492181,12.94,235.39,235.06,156.94297771]
[1737983492378,25.5365544,235.23,235.06,156.94297771]
[1737983492579,29.7899544,235.19,235.06,156.94297771]
[1737983492779,0.03029409,235.17,235.12,0.02917349]
[1737983493176,4.252,235.27,235.02,25.5365544]
[1737983493477,0.02708605,235.17,235.12,0.03008015]
[1737983493678,25.5365544,235.33,235.14,25.5365544]
[1737983493873,25.5365544,235.41,235.18,25.5365544]
[1737983494077,25.5365544,235.37,235.18,25.5365544]
[1737983494282,26.38628036,235.37,235.14,25.5365544]
[1737983494676,5.10006206,235.36,235.14,25.5365544]
[1737983494874,0.02758183,235.28,235.23,0.02692465]
[1737983495578,0.0362387,235.35,235.23,0.02692465]
[1737983495781,4.2506,235.34,235.23,0.02692465]
[1737983495981,0.0362387,235.35,235.23,0.02692465]
[1737983496575,25.5365544,235.34,235.23,0.02692465]
[1737983496882,0.03072586,235.31,235.23,0.02692465]
[1737983497079,0.03072586,235.31,235.24,25.5365544]
[1737983497274,0.03072586,235.31,235.23,0.02692465]
[1737983497682,0.00131069,235.31,235.23,0.02692465]
[1737983499185,10.62131069,235.31,235.23,0.02692465]
[1737983499385,10.60131069,235.31,235.23,0.02692465]
[1737983499585,25.5365544,235.41,235.23,0.02692465]
[1737983499785,25.5365544,235.41,235.16,25.5365544]
[1737983500187,25.5365544,235.36,235.16,25.5365544]
[1737983500584,0.03101757,235.28,235.24,0.02709684]
[1737983501591,4.2524,235.24,235.08,25.5365544]
[1737983501882,25.5365544,235.19,235.01,156.94297771]
[1737983502085,4.2552,235.09,235.02,0.8509914]
[1737983502389,25.5365544,235.07,235.02,0.8509914]
[1737983502785,0.02815885,235.07,235.02,0.87783543]
[1737983503289,25.56471325,235.07,235.02,0.87783543]
[1737983503589,3.81466395,235.03,234.81,182.47953211]
[1737983503791,25.5365544,234.99,234.81,156.94297771]
[1737983504288,25.5365544,235.11,234.9,25.5365544]
[1737983504587,25.5365544,235.29,235.03,25.5365544]
[1737983504784,25.5365544,235.2,234.98,0.03065519]
[1737983504990,25.5365544,235.16,234.92,25.5365544]
[1737983505189,25.5365544,235.12,234.88,25.5365544]
[1737983505587,25.5365544,235.18,234.96,25.5365544]
[1737983505791,0.03094547,235.02,234.98,0.02860798]
[1737983505986,25.5365544,235.18,234.98,0.02860798]
[1737983506291,25.5365544,235.22,235.0,25.5365544]
[1737983506493,25.5365544,235.13,234.89,2.1422]
[1737983506992,25.5365544,235.09,234.89,2.1422]
[1737983507290,0.02725037,235.03,234.99,0.02862498]
[1737983508390,0.02725037,235.03,234.85,25.5365544]
[1737983508591,0.02725037,235.03,234.81,25.5365544]
[1737983508887,25.5365544,235.0,234.77,25.5365544]
[1737983509190,25.5365544,235.07,234.76,2.6865]
[1737983509489,25.5365544,234.95,234.76,2.6865]
[1737983509689,25.5365544,234.95,234.89,0.02807427]
[1737983509690,0.02895997,234.94,234.89,0.02807427]
[1737983509889,25.5365544,235.07,234.75,5.9771]
[1737983509890,25.5365544,234.91,234.75,5.9771]
[1737983510086,25.5365544,234.91,234.89,0.03195967]
[1737983510285,0.02859389,234.94,234.69,25.5365544]
[1737983510491,25.5365544,234.96,234.69,25.5365544]
[1737983510686,25.5365544,234.92,234.73,25.5365544]
[1737983510990,25.5365544,235.04,234.81,25.5365544]
[1737983511185,25.5365544,235.18,234.89,25.5365544]
[1737983511186,28.8475544,235.12,234.89,25.5365544]
[1737983511388,28.8475544,235.12,234.9,0.03182145]
[1737983511690,28.8475544,235.12,234.89,25.5365544]
[1737983511886,25.5365544,235.18,234.85,25.5365544]
[1737983512091,25.5365544,235.23,234.99,25.5365544]
[1737983512390,3.2616,235.28,234.99,25.5365544]
[1737983512589,0.02868017,235.13,235.09,0.02890448]
[1737983512789,0.02868017,235.13,234.85,25.5365544]
[1737983512985,25.5365544,235.08,234.85,29.7958544]
[1737983513391,25.5365544,235.08,234.85,25.5365544]
[1737983513592,25.5365544,235.18,234.93,25.5365544]
[1737983513791,25.5365544,235.18,234.94,2.8016]
[1737983513993,0.0280274,235.08,235.03,0.03135625]
[1737983514300,25.5365544,235.18,234.98,25.5365544]
[1737983514499,25.5365544,235.51,235.03,25.5675474]
[1737983514688,4.251,235.32,235.03,25.5365544]
[1737983514892,5.9313,235.39,235.08,25.5365544]
[1737983515089,5.9313,235.39,235.09,2.8016]
[1737983515295,4.2508,235.33,235.09,2.8016]
[1737983515591,5.9313,235.39,235.09,2.8016]
[1737983515797,0.03065158,235.21,235.17,0.02848277]
[1737983517100,0.03065158,235.21,235.05,25.5365544]
[1737983517300,0.00564377,235.21,235.05,25.5365544]
[1737983517599,25.5365544,235.29,235.06,2.7961]
[1737983517790,25.5365544,235.19,235.06,2.7961]
[1737983517990,25.5365544,235.19,234.96,31.3673544]
[1737983518196,25.5365544,235.1,234.74,25.5365544]
[1737983518396,25.5365544,235.1,234.86,8.7131]
[1737983518597,0.02896987,235.0,234.98,4.257]
[1737983518789,0.02896987,235.0,234.95,25.56623713]
[1737983518790,25.5365544,235.18,234.99,2.7821]
[1737983519998,0.02814785,235.11,235.06,0.02948962]
[1737983520195,25.5365544,235.2,235.06,0.02948962]
[1737983520398,2.708,235.28,235.06,0.02948962]
[1737983520601,2.708,235.28,235.1,25.5365544]
[1737983521197,25.5365544,235.4,235.15,25.5365544]
[1737983521399,2.5365,235.39,235.19,25.5365544]
[1737983521594,25.5365544,235.4,235.18,25.5365544]
[1737983521898,25.5365544,235.4,235.27,0.02896895]
[1737983522102,25.5365544,235.44,235.27,0.02896895]
[1737983522300,5.8823,235.5,235.27,25.56552335]
[1737983522601,5.8823,235.5,235.36,0.031954]
[1737983522801,25.5365544,235.44,235.36,0.031954]
[1737983523000,5.8823,235.5,235.36,0.031954]
[1737983523697,2.6562,235.5,235.36,0.031954]
[1737983524200,25.5365544,235.55,235.36,0.031954]
[1737983524500,25.5365544,235.55,235.31,2.5709]
[1737983524699,25.5365544,235.55,235.43,0.02918339]
[1737983525197,29.7834544,235.55,235.43,0.02918339]
[1737983525402,25.5365544,235.51,235.43,0.02918339]
[1737983525799,25.5365544,235.51,235.31,2.5709]
[1737983526006,25.5365544,235.51,235.45,0.02986492]
[1737983526200,25.5365544,235.47,235.31,2.5709]
[1737983526395,29.7847544,235.47,235.46,0.02686891]
[1737983526603,25.5365544,235.47,235.24,2.797]
[1737983526802,0.03105214,235.49,235.27,25.5365544]
[1737983527002,25.5365544,235.55,235.32,25.5365544]
[1737983527606,0.03108878,235.46,235.41,0.02920757]
[1737983529001,4.249,235.43,235.41,0.02920757]
[1737983529198,25.5365544,235.43,235.24,2.797]
[1737983529400,25.5365544,235.37,235.14,25.5365544]
[1737983529706,25.5365544,235.37,235.15,2.6484]
[1737983530505,25.56452193,235.28,235.24,0.00031056]
[1737983530708,25.56452193,235.28,235.06,25.5365544]